[Event "December 12 Late 2023"]
[Site "https://www.chess.com"]
[Date "2023.12.12"]
[Round "1"]
[White "Haszon, David"]
[Black "Adewumi, Tanitoluwa"]
[Result "0-1"]
[Board "70"]
[TimeControl "180+1"]
[WhiteFideId "733610"]
[BlackFideId "30966396"]
[WhiteElo "2396"]
[BlackElo "2743"]
[WhiteTeam "HUN"]
[BlackTeam "USA"]
[WhiteClock "0:00:01"]
[BlackClock "0:00:14"]

1. d4 {[%clk 0:02:47]}  Nf6 {[%clk 0:02:52]} 2. Bf4 {[%clk 0:02:47]}  e6 {[%clk 0:02:52]} 3. e3 {[%clk 0:02:41]}  d5 {[%clk 0:02:52]} 4. Nd2 {[%clk 0:02:30]}  Bd6 {[%clk 0:02:50]} 5. Ngf3 {[%clk 0:02:26]}  O-O {[%clk 0:02:47]} 6. c3 {[%clk 0:02:22]}  c5 {[%clk 0:02:44]} 7. Bg3 {[%clk 0:02:11]}  Qc7 {[%clk 0:02:42]} 8. Rc1 {[%clk 0:01:56]}  Nc6 {[%clk 0:02:37]} 9. dxc5 {[%clk 0:01:49]}  Bxg3 {[%clk 0:02:37]} 10. hxg3 {[%clk 0:01:50]}  a5 {[%clk 0:02:30]} 11. c4 {[%clk 0:01:46]}  Rd8 {[%clk 0:02:20]} 12. Qc2 {[%clk 0:01:34]}  d4 {[%clk 0:02:04]} 13. e4 {[%clk 0:01:02]}  d3 {[%clk 0:01:26]} 14. Qb1 {[%clk 0:00:53]}  Nb4 {[%clk 0:01:22]} 15. a3 {[%clk 0:00:48]}  Nc2+ {[%clk 0:01:22]} 16. Rxc2 {[%clk 0:00:48]}  dxc2 {[%clk 0:01:23]} 17. Qxc2 {[%clk 0:00:49]}  e5 {[%clk 0:01:06]} 18. Qc3 {[%clk 0:00:42]}  Ng4 {[%clk 0:00:53]} 19. Be2 {[%clk 0:00:33]}  Qxc5 {[%clk 0:00:51]} 20. O-O {[%clk 0:00:34]}  Be6 {[%clk 0:00:44]} 21. b4 {[%clk 0:00:34]}  axb4 {[%clk 0:00:44]} 22. axb4 {[%clk 0:00:35]}  Qc7 {[%clk 0:00:44]} 23. c5 {[%clk 0:00:34]}  Rac8 {[%clk 0:00:42]} 24. Ng5 {[%clk 0:00:31]}  Bd7 {[%clk 0:00:31]} 25. Bc4 {[%clk 0:00:29]}  Be8 {[%clk 0:00:27]} 26. Nb3 {[%clk 0:00:18]}  h6 {[%clk 0:00:25]} 27. Nf3 {[%clk 0:00:18]}  b6 {[%clk 0:00:23]} 28. Bd5 {[%clk 0:00:17]}  Nf6 {[%clk 0:00:19]} 29. Rd1 {[%clk 0:00:16]}  Nxe4 {[%clk 0:00:18]} 30. Qe3 {[%clk 0:00:04]}  Nf6 {[%clk 0:00:18]} 31. Nxe5 {[%clk 0:00:03]}  Rxd5 {[%clk 0:00:17]} 32. Rxd5 {[%clk 0:00:02]}  Nxd5 {[%clk 0:00:18]} 33. cxb6 {[%clk 0:00:03]}  Nxe3 {[%clk 0:00:15]} 34. bxc7 {[%clk 0:00:03]}  Nd5 {[%clk 0:00:15]} 35. Nc5 {[%clk 0:00:03]}  Rxc7 {[%clk 0:00:14]} 36. Nc4 {[%clk 0:00:01]}  Nxb4 {[%clk 0:00:14]} 0-1

[Event "December 12 Late 2023"]
[Site "https://www.chess.com"]
[Date "2023.12.12"]
[Round "1"]
[White "Zou, Chen"]
[Black "Kostiukov, Alexandr"]
[Result "1-0"]
[Board "71"]
[TimeControl "180+1"]
[WhiteFideId "8610959"]
[BlackFideId "14108100"]
[WhiteElo "2742"]
[BlackElo "2391"]
[WhiteTeam "CHN"]
[BlackTeam "UKR"]
[WhiteClock "0:00:08"]
[BlackClock "0:00:15"]

1. Nf3 {[%clk 0:03:00]}  c5 {[%clk 0:02:55]} 2. e3 {[%clk 0:02:53]}  g6 {[%clk 0:02:55]} 3. c4 {[%clk 0:02:52]}  Bg7 {[%clk 0:02:55]} 4. Nc3 {[%clk 0:02:51]}  Nf6 {[%clk 0:02:54]} 5. d4 {[%clk 0:02:49]}  O-O {[%clk 0:02:53]} 6. d5 {[%clk 0:02:46]}  d6 {[%clk 0:02:54]} 7. h3 {[%clk 0:02:45]}  e6 {[%clk 0:02:54]} 8. Bd3 {[%clk 0:02:45]}  exd5 {[%clk 0:02:53]} 9. cxd5 {[%clk 0:02:46]}  Re8 {[%clk 0:02:41]} 10. O-O {[%clk 0:02:38]}  a6 {[%clk 0:02:39]} 11. a4 {[%clk 0:02:37]}  Qc7 {[%clk 0:02:37]} 12. Re1 {[%clk 0:02:35]}  c4 {[%clk 0:02:36]} 13. Bc2 {[%clk 0:02:33]}  Nbd7 {[%clk 0:02:35]} 14. a5 {[%clk 0:02:32]}  Rb8 {[%clk 0:02:32]} 15. e4 {[%clk 0:02:28]}  b5 {[%clk 0:02:22]} 16. axb6 {[%clk 0:02:29]}  Rxb6 {[%clk 0:02:21]} 17. Ra2 {[%clk 0:02:23]}  Qb8 {[%clk 0:02:03]} 18. Na4 {[%clk 0:01:50]}  Rb4 {[%clk 0:02:00]} 19. Bd2 {[%clk 0:01:50]}  Rb5 {[%clk 0:01:55]} 20. Nd4 {[%clk 0:01:47]}  Nc5 {[%clk 0:01:40]} 21. Nxb5 {[%clk 0:01:30]}  Nxa4 {[%clk 0:01:35]} 22. Nxd6 {[%clk 0:01:12]}  Nxb2 {[%clk 0:01:31]} 23. Rxb2 {[%clk 0:01:06]}  Qxd6 {[%clk 0:01:28]} 24. Rb1 {[%clk 0:00:47]}  Nd7 {[%clk 0:01:19]} 25. Bb4 {[%clk 0:00:41]}  Qe5 {[%clk 0:01:09]} 26. Re3 {[%clk 0:00:40]}  Bh6 {[%clk 0:00:54]} 27. Bc3 {[%clk 0:00:36]}  Qc7 {[%clk 0:00:50]} 28. Re1 {[%clk 0:00:35]}  f6 {[%clk 0:00:42]} 29. Ba4 {[%clk 0:00:29]}  Rd8 {[%clk 0:00:37]} 30. Bxd7 {[%clk 0:00:26]}  Bxd7 {[%clk 0:00:35]} 31. Bxf6 {[%clk 0:00:26]}  Rf8 {[%clk 0:00:34]} 32. e5 {[%clk 0:00:22]}  c3 {[%clk 0:00:30]} 33. Rc1 {[%clk 0:00:12]}  Bf5 {[%clk 0:00:26]} 34. d6 {[%clk 0:00:10]}  Qc4 {[%clk 0:00:23]} 35. d7 {[%clk 0:00:09]}  Bxc1 {[%clk 0:00:20]} 36. d8=Q {[%clk 0:00:07]}  Rxd8 {[%clk 0:00:19]} 37. Qxd8+ {[%clk 0:00:07]}  Kf7 {[%clk 0:00:15]} 38. Qe7+ {[%clk 0:00:08]} 1-0

[Event "December 12 Late 2023"]
[Site "https://www.chess.com"]
[Date "2023.12.12"]
[Round "1"]
[White "Pakleza, Zbigniew"]
[Black "Balla, Tamas-Kristof"]
[Result "1-0"]
[Board "77"]
[TimeControl "180+1"]
[WhiteFideId "1119290"]
[BlackFideId "1208497"]
[WhiteElo "2718"]
[BlackElo "2380"]
[WhiteTeam "POL"]
[BlackTeam "ROU"]
[WhiteClock "0:00:03"]
[BlackClock "0:00:26"]

1. d4 {[%clk 0:03:00]}  d5 {[%clk 0:02:58]} 2. Bf4 {[%clk 0:03:00]}  Nf6 {[%clk 0:02:57]} 3. e3 {[%clk 0:03:00]}  e6 {[%clk 0:02:57]} 4. Nd2 {[%clk 0:03:00]}  Bd6 {[%clk 0:02:57]} 5. Bg3 {[%clk 0:03:01]}  O-O {[%clk 0:02:57]} 6. Ngf3 {[%clk 0:03:01]}  b6 {[%clk 0:02:57]} 7. c3 {[%clk 0:03:02]}  c5 {[%clk 0:02:58]} 8. Ne5 {[%clk 0:03:02]}  Qc7 {[%clk 0:02:52]} 9. f4 {[%clk 0:02:57]}  Nfd7 {[%clk 0:02:43]} 10. Be2 {[%clk 0:02:49]}  Ba6 {[%clk 0:02:42]} 11. Bxa6 {[%clk 0:02:45]}  Nxa6 {[%clk 0:02:43]} 12. O-O {[%clk 0:02:45]}  f6 {[%clk 0:02:41]} 13. Nef3 {[%clk 0:02:40]}  Rae8 {[%clk 0:02:39]} 14. Qb3 {[%clk 0:02:03]}  Nab8 {[%clk 0:02:30]} 15. c4 {[%clk 0:01:45]}  dxc4 {[%clk 0:02:19]} 16. Nxc4 {[%clk 0:01:42]}  Kh8 {[%clk 0:02:00]} 17. Rfd1 {[%clk 0:01:28]}  cxd4 {[%clk 0:01:43]} 18. Nxd6 {[%clk 0:01:25]}  Qxd6 {[%clk 0:01:43]} 19. Rxd4 {[%clk 0:01:25]}  Qe7 {[%clk 0:01:39]} 20. Rad1 {[%clk 0:01:17]}  Nc5 {[%clk 0:01:36]} 21. Qa3 {[%clk 0:01:14]}  Nc6 {[%clk 0:01:34]} 22. Rd6 {[%clk 0:01:13]}  Qc7 {[%clk 0:01:24]} 23. b4 {[%clk 0:00:49]}  Ne4 {[%clk 0:01:18]} 24. Rd7 {[%clk 0:00:49]}  Qc8 {[%clk 0:01:14]} 25. Be1 {[%clk 0:00:34]}  Rd8 {[%clk 0:01:11]} 26. b5 {[%clk 0:00:23]}  Na5 {[%clk 0:01:05]} 27. Qe7 {[%clk 0:00:17]}  Rxd7 {[%clk 0:00:58]} 28. Rxd7 {[%clk 0:00:18]}  Rg8 {[%clk 0:00:58]} 29. h3 {[%clk 0:00:06]}  Qc1 {[%clk 0:00:56]} 30. Kh2 {[%clk 0:00:05]}  Qxe3 {[%clk 0:00:56]} 31. Bg3 {[%clk 0:00:03]}  Nxg3 {[%clk 0:00:32]} 32. Kxg3 {[%clk 0:00:04]}  h6 {[%clk 0:00:33]} 33. Rxa7 {[%clk 0:00:03]}  e5 {[%clk 0:00:32]} 34. fxe5 {[%clk 0:00:02]}  fxe5 {[%clk 0:00:32]} 35. Qxe5 {[%clk 0:00:03]}  Qa3 {[%clk 0:00:27]} 36. Ra6 {[%clk 0:00:03]}  Qxa2 {[%clk 0:00:25]} 37. Rxb6 {[%clk 0:00:03]}  Nc4 {[%clk 0:00:26]} 38. Rxh6# {[%clk 0:00:03]} 1-0

[Event "December 12 Late 2023"]
[Site "https://www.chess.com"]
[Date "2023.12.12"]
[Round "1"]
[White "Timmermans, Mark"]
[Black "Buenafe Moya, Javier"]
[Result "1-0"]
[Board "79"]
[TimeControl "180+1"]
[WhiteFideId "1026399"]
[BlackFideId "2206412"]
[WhiteElo "2707"]
[BlackElo "2375"]
[WhiteTeam "NED"]
[BlackTeam "ESP"]
[WhiteClock "0:02:26"]
[BlackClock "0:01:24"]

1. b4 {[%clk 0:02:58]}  e5 {[%clk 0:02:56]} 2. Bb2 {[%clk 0:02:58]}  Bxb4 {[%clk 0:02:55]} 3. Bxe5 {[%clk 0:02:58]}  Nf6 {[%clk 0:02:54]} 4. Nc3 {[%clk 0:02:58]}  O-O {[%clk 0:02:53]} 5. Bxf6 {[%clk 0:02:58]}  Qxf6 {[%clk 0:02:52]} 6. Nd5 {[%clk 0:02:59]}  Qd6 {[%clk 0:02:52]} 7. c4 {[%clk 0:02:59]}  c6 {[%clk 0:02:38]} 8. Nxb4 {[%clk 0:02:58]}  Qxb4 {[%clk 0:02:38]} 9. e3 {[%clk 0:02:59]}  d5 {[%clk 0:02:36]} 10. cxd5 {[%clk 0:03:00]}  cxd5 {[%clk 0:02:36]} 11. Nf3 {[%clk 0:03:01]}  Bg4 {[%clk 0:02:35]} 12. Bd3 {[%clk 0:03:00]}  Nc6 {[%clk 0:02:29]} 13. Rb1 {[%clk 0:03:00]}  Qe7 {[%clk 0:02:25]} 14. O-O {[%clk 0:02:57]}  d4 {[%clk 0:02:22]} 15. h3 {[%clk 0:02:42]}  Bh5 {[%clk 0:02:13]} 16. Be2 {[%clk 0:02:42]}  dxe3 {[%clk 0:02:09]} 17. dxe3 {[%clk 0:02:38]}  Rfd8 {[%clk 0:02:08]} 18. Qb3 {[%clk 0:02:37]}  Na5 {[%clk 0:02:06]} 19. Qb5 {[%clk 0:02:35]}  Bxf3 {[%clk 0:02:00]} 20. Bxf3 {[%clk 0:02:36]}  Nc6 {[%clk 0:01:53]} 21. Qxb7 {[%clk 0:02:33]}  Qxb7 {[%clk 0:01:52]} 22. Rxb7 {[%clk 0:02:34]}  Ne5 {[%clk 0:01:52]} 23. Be4 {[%clk 0:02:27]}  a5 {[%clk 0:01:24]} 24. Rb5 {[%clk 0:02:26]} 1-0

[Event "December 12 Late 2023"]
[Site "https://www.chess.com"]
[Date "2023.12.12"]
[Round "1"]
[White "Mesquita, Eduardo Barbosa"]
[Black "Sai Krishna G V"]
[Result "1/2-1/2"]
[Board "80"]
[TimeControl "180+1"]
[WhiteFideId "22757163"]
[BlackFideId "5028280"]
[WhiteElo "2374"]
[BlackElo "2707"]
[WhiteTeam "BRA"]
[BlackTeam "IND"]
[WhiteClock "0:01:44"]
[BlackClock "0:01:25"]

1. e4 {[%clk 0:03:00]}  c5 {[%clk 0:02:58]} 2. Nf3 {[%clk 0:03:01]}  d6 {[%clk 0:02:59]} 3. d4 {[%clk 0:03:01]}  cxd4 {[%clk 0:03:00]} 4. Nxd4 {[%clk 0:03:02]}  Nf6 {[%clk 0:03:01]} 5. Nc3 {[%clk 0:03:02]}  a6 {[%clk 0:03:01]} 6. f3 {[%clk 0:03:03]}  e5 {[%clk 0:03:00]} 7. Nb3 {[%clk 0:03:04]}  Be6 {[%clk 0:03:01]} 8. Be3 {[%clk 0:03:04]}  Nbd7 {[%clk 0:03:01]} 9. Qd2 {[%clk 0:03:05]}  Qc7 {[%clk 0:03:01]} 10. O-O-O {[%clk 0:03:05]}  Rc8 {[%clk 0:03:01]} 11. g4 {[%clk 0:03:06]}  h6 {[%clk 0:02:44]} 12. Kb1 {[%clk 0:03:01]}  b5 {[%clk 0:02:44]} 13. Nd5 {[%clk 0:03:00]}  Bxd5 {[%clk 0:02:43]} 14. exd5 {[%clk 0:03:01]}  Nb6 {[%clk 0:02:43]} 15. Bxb6 {[%clk 0:03:02]}  Qxb6 {[%clk 0:02:44]} 16. Na5 {[%clk 0:03:01]}  Be7 {[%clk 0:02:41]} 17. Nc6 {[%clk 0:02:59]}  Nxd5 {[%clk 0:02:20]} 18. Nxe7 {[%clk 0:02:58]}  Nxe7 {[%clk 0:02:21]} 19. Qxd6 {[%clk 0:02:58]}  Qxd6 {[%clk 0:02:22]} 20. Rxd6 {[%clk 0:02:59]}  Rd8 {[%clk 0:02:19]} 21. Rxd8+ {[%clk 0:02:58]}  Kxd8 {[%clk 0:02:20]} 22. a4 {[%clk 0:02:56]}  bxa4 {[%clk 0:02:14]} 23. Bxa6 {[%clk 0:02:57]}  Kc7 {[%clk 0:02:14]} 24. Rd1 {[%clk 0:02:47]}  Nc6 {[%clk 0:02:14]} 25. Bb5 {[%clk 0:02:38]}  Nd4 {[%clk 0:02:14]} 26. Bxa4 {[%clk 0:02:32]}  h5 {[%clk 0:02:12]} 27. f4 {[%clk 0:02:24]}  hxg4 {[%clk 0:02:07]} 28. fxe5 {[%clk 0:02:24]}  Nf3 {[%clk 0:01:59]} 29. Rd7+ {[%clk 0:02:20]}  Kb6 {[%clk 0:01:59]} 30. Rxf7 {[%clk 0:02:15]}  Nxe5 {[%clk 0:01:59]} 31. Rxg7 {[%clk 0:02:15]}  Rxh2 {[%clk 0:01:57]} 32. b4 {[%clk 0:02:09]}  Rg2 {[%clk 0:01:37]} 33. Kb2 {[%clk 0:02:08]}  g3 {[%clk 0:01:36]} 34. Kb3 {[%clk 0:02:00]}  Rg1 {[%clk 0:01:35]} 35. c4 {[%clk 0:01:56]}  Rb1+ {[%clk 0:01:34]} 36. Kc2 {[%clk 0:01:55]}  Rxb4 {[%clk 0:01:32]} 37. Bb3 {[%clk 0:01:49]}  Nxc4 {[%clk 0:01:28]} 38. Bxc4 {[%clk 0:01:44]}  Rxc4+ {[%clk 0:01:28]} 39. Kd2 {[%clk 0:01:45]}  Kc5 {[%clk 0:01:25]} 40. Rxg3 {[%clk 0:01:45]}  Rd4+ {[%clk 0:01:25]} 41. Rd3 {[%clk 0:01:43]}  Rxd3+ {[%clk 0:01:25]} 42. Kxd3 {[%clk 0:01:44]} 1/2-1/2

[Event "December 12 Late 2023"]
[Site "https://www.chess.com"]
[Date "2023.12.12"]
[Round "1"]
[White "Thomforde-Toates, Noah"]
[Black "Haraguchi, Diego Sashaki"]
[Result "0-1"]
[Board "81"]
[TimeControl "180+1"]
[WhiteFideId "30951992"]
[BlackFideId "22729925"]
[WhiteElo "2706"]
[BlackElo "2371"]
[WhiteTeam "USA"]
[BlackTeam "BRA"]
[WhiteClock "0:00:19"]
[BlackClock "0:00:21"]

1. d4 {[%clk 0:03:00]}  Nf6 {[%clk 0:02:56]} 2. Nc3 {[%clk 0:03:01]}  d5 {[%clk 0:02:55]} 3. Bf4 {[%clk 0:03:01]}  e6 {[%clk 0:02:50]} 4. e3 {[%clk 0:03:01]}  Bb4 {[%clk 0:02:49]} 5. Bd3 {[%clk 0:03:01]}  c5 {[%clk 0:02:49]} 6. dxc5 {[%clk 0:03:02]}  Qa5 {[%clk 0:02:45]} 7. Ne2 {[%clk 0:03:01]}  Nbd7 {[%clk 0:02:45]} 8. a3 {[%clk 0:03:01]}  Bxc3+ {[%clk 0:02:44]} 9. Nxc3 {[%clk 0:03:00]}  e5 {[%clk 0:02:44]} 10. b4 {[%clk 0:02:57]}  Qd8 {[%clk 0:02:41]} 11. Bg3 {[%clk 0:02:57]}  O-O {[%clk 0:02:40]} 12. O-O {[%clk 0:02:56]}  Re8 {[%clk 0:02:23]} 13. Bb5 {[%clk 0:02:54]}  a6 {[%clk 0:02:19]} 14. Ba4 {[%clk 0:02:46]}  b5 {[%clk 0:01:58]} 15. cxb6 {[%clk 0:02:44]}  Bb7 {[%clk 0:01:58]} 16. Bh4 {[%clk 0:02:39]}  Re6 {[%clk 0:01:29]} 17. Ne2 {[%clk 0:02:33]}  Nxb6 {[%clk 0:01:24]} 18. Bb3 {[%clk 0:02:28]}  Qc7 {[%clk 0:01:19]} 19. Ng3 {[%clk 0:02:25]}  Nc4 {[%clk 0:01:11]} 20. Nf5 {[%clk 0:02:17]}  Ne4 {[%clk 0:00:45]} 21. Qg4 {[%clk 0:01:47]}  Rg6 {[%clk 0:00:39]} 22. Qh5 {[%clk 0:01:41]}  Re8 {[%clk 0:00:28]} 23. Rad1 {[%clk 0:01:32]}  Ncd2 {[%clk 0:00:26]} 24. Ba4 {[%clk 0:01:23]}  Ree6 {[%clk 0:00:21]} 25. Rfe1 {[%clk 0:01:18]}  Nc4 {[%clk 0:00:18]} 26. Bb3 {[%clk 0:01:13]}  Ncd2 {[%clk 0:00:16]} 27. f3 {[%clk 0:01:08]}  Nxb3 {[%clk 0:00:14]} 28. fxe4 {[%clk 0:01:04]}  Qxc2 {[%clk 0:00:13]} 29. Qe2 {[%clk 0:01:03]}  Qxe4 {[%clk 0:00:12]} 30. Ne7+ {[%clk 0:01:03]}  Rxe7 {[%clk 0:00:11]} 31. Bxe7 {[%clk 0:01:04]}  d4 {[%clk 0:00:12]} 32. Kf1 {[%clk 0:00:12]}  Rxg2 {[%clk 0:00:11]} 33. exd4 {[%clk 0:00:11]}  Rxe2 {[%clk 0:00:11]} 34. Rxe2 {[%clk 0:00:11]}  Qh1+ {[%clk 0:00:09]} 35. Kf2 {[%clk 0:00:11]}  Qxd1 {[%clk 0:00:09]} 36. dxe5 {[%clk 0:00:11]}  Qd4+ {[%clk 0:00:09]} 37. Kf1 {[%clk 0:00:11]}  Qf4+ {[%clk 0:00:09]} 38. Ke1 {[%clk 0:00:11]}  Nd4 {[%clk 0:00:08]} 39. Rd2 {[%clk 0:00:11]}  Nf3+ {[%clk 0:00:08]} 40. Kf2 {[%clk 0:00:11]}  Qxd2+ {[%clk 0:00:09]} 41. Kg3 {[%clk 0:00:11]}  Qxh2+ {[%clk 0:00:10]} 42. Kg4 {[%clk 0:00:11]}  h5+ {[%clk 0:00:11]} 43. Kf5 {[%clk 0:00:12]}  Bc8+ {[%clk 0:00:11]} 44. Ke4 {[%clk 0:00:12]}  Ng5+ {[%clk 0:00:12]} 45. Bxg5 {[%clk 0:00:12]}  Qe2+ {[%clk 0:00:12]} 46. Be3 {[%clk 0:00:12]}  Bb7+ {[%clk 0:00:12]} 47. Kd4 {[%clk 0:00:12]}  Qf3 {[%clk 0:00:12]} 48. Bd2 {[%clk 0:00:12]}  Qe4+ {[%clk 0:00:13]} 49. Kc5 {[%clk 0:00:12]}  Qxe5+ {[%clk 0:00:14]} 50. Kb6 {[%clk 0:00:13]}  Qb5+ {[%clk 0:00:13]} 51. Ka7 {[%clk 0:00:13]}  Qd7 {[%clk 0:00:12]} 52. Kb6 {[%clk 0:00:13]}  Qxd2 {[%clk 0:00:12]} 53. Kxb7 {[%clk 0:00:13]}  Qc3 {[%clk 0:00:13]} 54. Kxa6 {[%clk 0:00:13]}  Qxa3+ {[%clk 0:00:14]} 55. Kb5 {[%clk 0:00:14]}  Qa7 {[%clk 0:00:13]} 56. Kc4 {[%clk 0:00:14]}  Qb8 {[%clk 0:00:14]} 57. b5 {[%clk 0:00:15]}  g5 {[%clk 0:00:15]} 58. Kb4 {[%clk 0:00:15]}  g4 {[%clk 0:00:16]} 59. b6 {[%clk 0:00:16]}  h4 {[%clk 0:00:17]} 60. b7 {[%clk 0:00:17]}  h3 {[%clk 0:00:18]} 61. Kc4 {[%clk 0:00:17]}  h2 {[%clk 0:00:18]} 62. Kd4 {[%clk 0:00:18]}  h1=Q {[%clk 0:00:19]} 63. Kd3 {[%clk 0:00:19]}  Qhxb7 {[%clk 0:00:19]} 64. Ke3 {[%clk 0:00:20]}  Qe5+ {[%clk 0:00:19]} 65. Kf2 {[%clk 0:00:20]}  Qf3+ {[%clk 0:00:19]} 66. Kg1 {[%clk 0:00:18]}  Qe1+ {[%clk 0:00:20]} 67. Kh2 {[%clk 0:00:19]}  Qeh1# {[%clk 0:00:21]} 0-1

[Event "December 12 Late 2023"]
[Site "https://www.chess.com"]
[Date "2023.12.12"]
[Round "1"]
[White "Zampronha, Wladimir Camilo"]
[Black "Wafa, Hamed"]
[Result "0-1"]
[Board "82"]
[TimeControl "180+1"]
[WhiteFideId "2103087"]
[BlackFideId "10628452"]
[WhiteElo "2364"]
[BlackElo "2704"]
[WhiteTeam "BRA"]
[BlackTeam "EGY"]
[WhiteClock "0:00:15"]
[BlackClock "0:00:19"]

1. e4 {[%clk 0:03:00]}  g6 {[%clk 0:02:57]} 2. d4 {[%clk 0:03:00]}  Bg7 {[%clk 0:02:56]} 3. Nc3 {[%clk 0:03:01]}  c6 {[%clk 0:02:54]} 4. Nf3 {[%clk 0:02:57]}  d5 {[%clk 0:02:53]} 5. h3 {[%clk 0:02:53]}  dxe4 {[%clk 0:02:51]} 6. Nxe4 {[%clk 0:02:52]}  Nf6 {[%clk 0:02:52]} 7. Nxf6+ {[%clk 0:02:52]}  exf6 {[%clk 0:02:53]} 8. Bc4 {[%clk 0:02:47]}  O-O {[%clk 0:02:48]} 9. O-O {[%clk 0:02:47]}  a5 {[%clk 0:02:49]} 10. a4 {[%clk 0:02:46]}  Nd7 {[%clk 0:02:49]} 11. Re1 {[%clk 0:02:42]}  Nb6 {[%clk 0:02:48]} 12. Bb3 {[%clk 0:02:42]}  Nd5 {[%clk 0:02:33]} 13. c3 {[%clk 0:02:37]}  Bf5 {[%clk 0:02:27]} 14. Bc2 {[%clk 0:02:34]}  Bxc2 {[%clk 0:02:25]} 15. Qxc2 {[%clk 0:02:34]}  Qd6 {[%clk 0:02:25]} 16. Bd2 {[%clk 0:02:31]}  Rfe8 {[%clk 0:02:16]} 17. Qd3 {[%clk 0:02:28]}  f5 {[%clk 0:02:10]} 18. Rxe8+ {[%clk 0:02:26]}  Rxe8 {[%clk 0:02:08]} 19. Re1 {[%clk 0:02:26]}  Rxe1+ {[%clk 0:02:06]} 20. Nxe1 {[%clk 0:02:26]}  Qe6 {[%clk 0:01:50]} 21. Nf3 {[%clk 0:02:24]}  Nb6 {[%clk 0:01:50]} 22. Ng5 {[%clk 0:01:26]}  Qe7 {[%clk 0:01:27]} 23. Qc2 {[%clk 0:01:07]}  Qe2 {[%clk 0:01:09]} 24. Nf3 {[%clk 0:01:03]}  Nc4 {[%clk 0:01:02]} 25. b3 {[%clk 0:00:58]}  Nd6 {[%clk 0:00:59]} 26. Qc1 {[%clk 0:00:42]}  Ne4 {[%clk 0:00:55]} 27. Qe1 {[%clk 0:00:43]}  Qd3 {[%clk 0:00:53]} 28. Qe3 {[%clk 0:00:42]}  Qb1+ {[%clk 0:00:53]} 29. Kh2 {[%clk 0:00:42]}  Qxb3 {[%clk 0:00:53]} 30. Ng5 {[%clk 0:00:41]}  Qd5 {[%clk 0:00:35]} 31. Nxe4 {[%clk 0:00:39]}  Qxe4 {[%clk 0:00:36]} 32. Qg3 {[%clk 0:00:35]}  Qe8 {[%clk 0:00:29]} 33. Qc7 {[%clk 0:00:36]}  Bf8 {[%clk 0:00:24]} 34. Qxa5 {[%clk 0:00:35]}  Bd6+ {[%clk 0:00:24]} 35. g3 {[%clk 0:00:34]}  h5 {[%clk 0:00:17]} 36. Qb6 {[%clk 0:00:31]}  h4 {[%clk 0:00:17]} 37. Bf4 {[%clk 0:00:28]}  hxg3+ {[%clk 0:00:17]} 38. Bxg3 {[%clk 0:00:26]}  f4 {[%clk 0:00:18]} 39. Bh4 {[%clk 0:00:25]}  g5 {[%clk 0:00:19]} 40. Bxg5 {[%clk 0:00:25]}  f3+ {[%clk 0:00:19]} 41. Kg1 {[%clk 0:00:15]}  Qe1# {[%clk 0:00:19]} 0-1

[Event "December 12 Late 2023"]
[Site "https://www.chess.com"]
[Date "2023.12.12"]
[Round "1"]
[White "Stark, John"]
[Black "Aldokhin, Ivan"]
[Result "0-1"]
[Board "86"]
[TimeControl "180+1"]
[WhiteFideId "4300963"]
[BlackFideId "24115720"]
[WhiteElo "2358"]
[BlackElo "2693"]
[WhiteTeam "NZL"]
[BlackTeam "RUS"]
[WhiteClock "0:02:20"]
[BlackClock "0:01:53"]

1. c4 {[%clk 0:02:59]}  Nf6 {[%clk 0:02:59]} 2. g3 {[%clk 0:02:59]}  g6 {[%clk 0:02:59]} 3. Bg2 {[%clk 0:02:59]}  Bg7 {[%clk 0:03:00]} 4. Nc3 {[%clk 0:03:00]}  O-O {[%clk 0:03:00]} 5. e3 {[%clk 0:03:00]}  d6 {[%clk 0:03:00]} 6. Nge2 {[%clk 0:03:01]}  e5 {[%clk 0:03:01]} 7. d4 {[%clk 0:03:01]}  Nc6 {[%clk 0:03:00]} 8. O-O {[%clk 0:03:01]}  Bf5 {[%clk 0:02:58]} 9. e4 {[%clk 0:02:56]}  Bd7 {[%clk 0:02:54]} 10. d5 {[%clk 0:02:55]}  Ne7 {[%clk 0:02:51]} 11. f4 {[%clk 0:02:55]}  Ne8 {[%clk 0:02:47]} 12. fxe5 {[%clk 0:02:50]}  Bxe5 {[%clk 0:02:45]} 13. Bh6 {[%clk 0:02:48]}  Ng7 {[%clk 0:02:44]} 14. Qd2 {[%clk 0:02:47]}  f5 {[%clk 0:02:41]} 15. exf5 {[%clk 0:02:46]}  Nexf5 {[%clk 0:02:39]} 16. Bg5 {[%clk 0:02:40]}  Qe8 {[%clk 0:02:22]} 17. Kh1 {[%clk 0:02:37]}  Rf7 {[%clk 0:02:11]} 18. Rae1 {[%clk 0:02:35]}  Qf8 {[%clk 0:02:06]} 19. Ne4 {[%clk 0:02:22]}  Re8 {[%clk 0:01:53]} 20. N2c3 {[%clk 0:02:20]} 0-1

[Event "December 12 Late 2023"]
[Site "https://www.chess.com"]
[Date "2023.12.12"]
[Round "1"]
[White "Rosen, Eric"]
[Black "Bernat, David"]
[Result "1-0"]
[Board "87"]
[TimeControl "180+1"]
[WhiteFideId "2032562"]
[BlackFideId "2099225"]
[WhiteElo "2690"]
[BlackElo "2350"]
[WhiteTeam "USA"]
[BlackTeam "USA"]
[WhiteClock "0:00:04"]
[BlackClock "0:00:00"]

1. e4 {[%clk 0:03:00]}  c5 {[%clk 0:02:59]} 2. Nc3 {[%clk 0:02:59]}  g6 {[%clk 0:03:00]} 3. h4 {[%clk 0:02:57]}  h6 {[%clk 0:02:57]} 4. d4 {[%clk 0:02:57]}  cxd4 {[%clk 0:02:57]} 5. Qxd4 {[%clk 0:02:58]}  Nf6 {[%clk 0:02:57]} 6. Bb5 {[%clk 0:02:55]}  a6 {[%clk 0:02:57]} 7. e5 {[%clk 0:02:54]}  Bg7 {[%clk 0:02:42]} 8. Qa4 {[%clk 0:02:30]}  Nh7 {[%clk 0:02:26]} 9. h5 {[%clk 0:02:21]}  g5 {[%clk 0:02:24]} 10. f4 {[%clk 0:02:06]}  gxf4 {[%clk 0:02:18]} 11. Bxf4 {[%clk 0:02:05]}  Nc6 {[%clk 0:02:16]} 12. Nf3 {[%clk 0:01:57]}  Nf8 {[%clk 0:02:08]} 13. O-O-O {[%clk 0:01:30]}  Ne6 {[%clk 0:02:08]} 14. Bxc6 {[%clk 0:01:14]}  bxc6 {[%clk 0:02:06]} 15. Be3 {[%clk 0:01:15]}  Rb8 {[%clk 0:02:00]} 16. Ne4 {[%clk 0:01:00]}  Qc7 {[%clk 0:01:50]} 17. Rhe1 {[%clk 0:00:48]}  c5 {[%clk 0:01:26]} 18. Nc3 {[%clk 0:00:43]}  Bb7 {[%clk 0:01:20]} 19. Bf2 {[%clk 0:00:40]}  Qc6 {[%clk 0:01:06]} 20. Qg4 {[%clk 0:00:31]}  Bc8 {[%clk 0:00:43]} 21. Nd2 {[%clk 0:00:21]}  Rb4 {[%clk 0:00:41]} 22. Re4 {[%clk 0:00:20]}  Qb7 {[%clk 0:00:25]} 23. Nc4 {[%clk 0:00:17]}  O-O {[%clk 0:00:17]} 24. Qg3 {[%clk 0:00:14]}  Kh7 {[%clk 0:00:12]} 25. Qd3 {[%clk 0:00:14]}  Kh8 {[%clk 0:00:12]} 26. Nd5 {[%clk 0:00:14]}  Nc7 {[%clk 0:00:11]} 27. Nxb4 {[%clk 0:00:13]}  cxb4 {[%clk 0:00:12]} 28. Bd4 {[%clk 0:00:10]}  Ne6 {[%clk 0:00:12]} 29. Rg4 {[%clk 0:00:10]}  Qc6 {[%clk 0:00:10]} 30. Ne3 {[%clk 0:00:08]}  a5 {[%clk 0:00:09]} 31. Nf5 {[%clk 0:00:08]}  Ba6 {[%clk 0:00:08]} 32. Qg3 {[%clk 0:00:06]}  Rc8 {[%clk 0:00:08]} 33. Rd2 {[%clk 0:00:06]}  Nxd4 {[%clk 0:00:08]} 34. Nxd4 {[%clk 0:00:06]}  Qc4 {[%clk 0:00:06]} 35. Rxg7 {[%clk 0:00:02]}  Qf1+ {[%clk 0:00:05]} 36. Rd1 {[%clk 0:00:03]}  Qc4 {[%clk 0:00:02]} 37. Rxf7 {[%clk 0:00:03]}  Rg8 {[%clk 0:00:00]} 38. Qe3 {[%clk 0:00:04]} 1-0